fUSD/lending_fUSD_20241026
["ID","MTS","AMOUNT","RATE_DAILY","PERIOD"]
[340871350,1729966243274,-929.96123073,0.0006769,120]
[340871351,1729966243288,-66960.33876926,0.0006769,120]
[340871352,1729966243301,-333.46754039,0.0006769,120]
[340871353,1729966243321,-339.2232948,0.0006769,120]
[340871354,1729966243444,-541.92539657,0.0006769,120]
[340871355,1729966243456,-697.68583,0.0006769,120]
[340871356,1729966243469,-720.02828238,0.0006769,120]
[340871357,1729966243482,-502.49912,0.0006769,120]
[340871358,1729966243495,-858.6849167,0.0006769,120]
[340871360,1729966243508,-11017.7906506,0.0006769,120]
[340871361,1729966243520,-5367.63459358,0.0006769,120]
[340871362,1729966246163,-468.519179,0.0006769,120]
[340871363,1729966246223,-2079.38884131,0.0006769,120]
[340871364,1729966246281,-968.20747126,0.0006769,120]
[340871365,1729966246344,-2875006.31827608,0.0006769,120]
[340871366,1729966246356,-11062.11061774,0.0006769,120]
[340871367,1729966246368,-102254.13424508,0.0006769,120]
[340871368,1729966246380,-622.70261,0.0006769,120]
[340871369,1729966246575,-12111.36293923,0.0006769,120]
[340871370,1729966246589,-62084.24849883,0.0006769,120]
[340871371,1729966246601,-28042.35394889,0.0006769,120]
[340871372,1729966246614,-2270.18903389,0.0006769,120]
[340871373,1729966246632,-308.1,0.0006769,120]
[340871393,1729966246820,-32038.57146445,0.0006769,120]
[340871395,1729966246837,-651.84441404,0.0006769,120]
[340871397,1729966377453,150.0,0.00015342,2]
[340871398,1729966377477,6.55,0.00015342,2]
[340871400,1729967108645,22064.57,0.00015,2]
[340871401,1729967108682,50000.0,0.00015,2]
[340871402,1729967108709,50000.0,0.00015,2]
[340871403,1729967108744,50000.0,0.00015,2]
[340871404,1729967108771,50000.0,0.00015,2]
[340871405,1729967108797,50000.0,0.00015,2]
[340871406,1729967108824,50000.0,0.00015,2]
[340871407,1729967108850,50000.0,0.00015,2]
[340871408,1729967108876,50000.0,0.00015,2]
[340871409,1729967108930,50000.0,0.00015,2]
[340871410,1729967108958,50000.0,0.00015,2]
[340871411,1729967108986,50000.0,0.00015,2]
[340871412,1729967109013,16000000.0,0.00015,2]
[340871414,1729967109109,5000.0,0.00015,2]
[340871415,1729967109134,5000.0,0.00015,2]
[340871416,1729967109166,50000.0,0.00015,2]
[340871417,1729967109192,50000.0,0.00015,2]
[340871418,1729967109239,601.31,0.00015,2]
[340871419,1729967109288,200000.0,0.00015,2]
[340871420,1729967109316,50000.0,0.00015,2]
[340871421,1729967109343,50000.0,0.00015,2]
[340871422,1729967109373,33850.0,0.00015,2]
[340871423,1729967109400,50000.0,0.00015,2]
[340871424,1729967109425,22000.0,0.00015,2]
[340871425,1729967114103,-3144.46631129,0.00015,2]
[340871426,1729967114655,-167.70042364,0.00015,2]
[340871427,1729967115639,-150.0,0.00015,2]
[340871428,1729967116788,-150.0,0.00015,2]
[340871429,1729967117433,-150.0,0.00015,2]
[340871430,1729967118095,-150.0,0.00015,2]
[340871431,1729967119244,-150.0,0.00015,2]
[340871432,1729967119733,-150.0,0.00015,2]
[340871433,1729967120653,-150.0,0.00015,2]
[340871434,1729967121328,-150.0,0.00015,2]
[340871435,1729967121864,-150.0,0.00015,2]
[340871436,1729967124055,-150.0,0.00015,2]
[340871437,1729967124910,-150.0,0.00015,2]
[340871438,1729967125546,-150.0,0.00015,2]
[340871439,1729967130155,150.0,0.000101,2]
[340871440,1729967130176,150.0,0.000101,2]
[340871441,1729967130198,150.0,0.000101,2]
[340871442,1729967130219,150.0,0.000101,2]
[340871443,1729967130240,150.0,0.000101,2]
[340871444,1729967130261,150.0,0.000101,2]
[340871445,1729967130282,150.0,0.000101,2]
[340871446,1729967130302,150.0,0.000101,2]
[340871447,1729967130323,150.0,0.000101,2]
[340871448,1729967130344,150.0,0.000101,2]
[340871449,1729967130369,150.0,0.000101,2]
[340871450,1729967130393,168.82286569,0.000101,2]
[340871451,1729967160123,-50000.0,0.00015,2]
[340871452,1729967160939,-50000.0,0.00015,2]
[340871453,1729967161516,-50000.0,0.00015,2]
[340871454,1729967162032,-50000.0,0.00015,2]
[340871455,1729967162588,-50000.0,0.00015,2]
[340871456,1729967163230,-50000.0,0.00015,2]
[340871458,1729967239130,-170.28950285,0.000149,2]
[340871459,1729967239150,-500.0,0.00014973,2]
[340871460,1729967239171,-500.0,0.00014973,2]
[340871461,1729967239195,-283.90995393,0.0001499,2]
[340871462,1729967257910,500.0,0.00015,21]
[340871463,1729967261205,-399.14035392,0.0001499,2]
[340871464,1729967261228,-200.12344566,0.00014999,2]
[340871465,1729967261250,-150.0,0.00014999,2]
[340871466,1729967261273,-8906.73620042,0.00015,2]
[340871467,1729967270867,500.0,0.00015,21]
[340871468,1729967283390,500.0,0.00015,21]
[340871469,1729967296414,500.0,0.00015,21]
[340871471,1729967309426,500.0,0.00015,21]
[340871474,1729967316983,6731.17713431,0.00010998,2]
[340871475,1729967317009,2574.72012637,0.00010998,2]
[340871476,1729967322257,500.0,0.00015,21]
[340871479,1729967327110,254.69119752,0.000107,2]
[340871481,1729967335213,500.0,0.00015,21]
[340871485,1729967367090,-300.0,0.00014989,2]
[340871486,1729967367113,-2618.11856,0.0001499,2]
[340871487,1729967373520,500.0,0.00015,21]
[340871521,1729967432410,-0.9184359,0.00014989,2]
[340871524,1729967432426,-310.26364239,0.00014926,2]
[340871526,1729967432435,-299.0815641,0.00014989,2]
[340871528,1729967432444,-132.50686651,0.0001499,2]
[340871530,1729967432455,-303.4456781,0.0001499,2]
[340871531,1729967432466,-295.6043219,0.0001499,2]
[340871532,1729967432477,-749.9006,0.0001499,2]
[340871534,1729967432488,-345.6321,0.0001499,2]
[340871536,1729967432499,-31934.66705243,0.0001499,2]
[340871538,1729967432510,-23631.37805176,0.0001499,2]
[340871540,1729967432519,-43478.62194831,0.0001499,2]
[340871544,1729967432540,-32408.66517769,0.0001499,2]
[340871546,1729967432549,-239.93699021,0.0001499,2]
[340871548,1729967432558,-500.0,0.00014999,2]
[340871550,1729967432568,-29832.91630091,0.00015,2]
[340871577,1729967438283,-945.25917212,0.00014926,2]
[340871578,1729967438293,-3443.91674945,0.00015,2]
[340871579,1729967438304,-610.82407843,0.00015,2]
[340871580,1729967438543,-8248.30392265,0.00015,2]
[340871581,1729967438555,-2966.07400033,0.00015,2]
[340871582,1729967438567,-5146.02669942,0.00015,2]
[340871583,1729967438585,-8714.25382459,0.00015,2]
[340871584,1729967438596,-16144.42501187,0.00015,2]
[340871585,1729967438607,-468061.0724853,0.00015,2]
[340871586,1729967438676,-110559.37210072,0.00015,2]
[340871587,1729967438687,-43990.2977459,0.00015,2]
[340871588,1729967438698,-275.51487617,0.00015,2]
[340871589,1729967438709,-3199.00243035,0.00015,2]
[340871617,1729967440518,-18120.22956798,0.00015,2]
[340871618,1729967440530,-1105.0705494,0.00015,2]
[340871619,1729967440541,-650091.71766725,0.00015,2]
[340871620,1729967440596,-20685.3768671,0.00015,2]
[340871621,1729967440680,-2714.46805953,0.00015,2]
[340871838,1729967443385,-1217.76054587,0.00015,2]
[340871910,1729967446406,-1743.48859262,0.00015,2]
[340871911,1729967446526,-150.0,0.00015,2]
[340871941,1729967447032,-162.53382216,0.00015,2]
[340871990,1729967447528,-162.53382216,0.00015,2]
[340872181,1729967449729,-150.0,0.00015,2]
[340872182,1729967450624,-150.0,0.00015,2]
[340872183,1729967451431,-159.45172264,0.00015,2]
[340872184,1729967451917,-150.0,0.00015,2]
[340872185,1729967452879,-150.0,0.00015,2]
[340872186,1729967453416,-150.0,0.00015,2]
[340872187,1729967455893,-270.0,0.00015,2]
[340872188,1729967456933,-150.0,0.00015,2]
[340872189,1729967457416,-150.0,0.00015,2]
[340872190,1729967458031,-150.0,0.00015,2]
[340872191,1729967458939,-150.0,0.00015,2]
[340872192,1729967460236,-150.0,0.00015,2]
[340872193,1729967460750,-150.0,0.00015,2]
[340872194,1729967461844,-150.0,0.00015,2]
[340872195,1729967693521,199.45,0.00015,60]
[340872197,1729968568873,-171.514,0.000147,2]
[340872198,1729968568893,-150.0,0.00014834,2]
[340872199,1729968568914,-323.08926958,0.000149,2]
[340872200,1729968568934,-153.52950061,0.000149,2]
[340872201,1729968568956,-146.86722981,0.00014972,2]
[340872203,1729968631569,-0.20535597,0.00014841,2]
[340872204,1729968631581,-149.79464403,0.00014841,2]
[340872205,1729968631591,-159.711936,0.00014973,2]
[340872206,1729968631600,-390.99834466,0.00014973,2]
[340872207,1729968631610,-159.711936,0.00014973,2]
[340872208,1729968631619,-159.711936,0.00014973,2]
[340872209,1729968631629,-509.93640327,0.00014973,2]
[340872210,1729968631639,-159.711936,0.00014973,2]
[340872211,1729968631648,-446.26166404,0.00014973,2]
[340872212,1729968631659,-5603.80317026,0.00014973,2]
[340872213,1729968631669,-3073.15246671,0.0001499,2]
[340872214,1729968631678,-1875.73446263,0.00015,2]
[340872215,1729968631690,-1091.26357004,0.00015,2]
[340872216,1729968631700,-1919.83109528,0.00015,2]
[340872217,1729968631729,-400.00793133,0.00015,2]
[340872218,1729968631740,-203573.07060017,0.00015,2]
[340872219,1729968631751,-6822.66290055,0.00015,2]
[340872220,1729968631762,-324.2343219,0.00015,2]
[340872221,1729968631773,-7059.5764686,0.00015,2]
[340872222,1729968631788,-544.02,0.00015,2]
[340872223,1729968631799,-302.14414535,0.00015,2]
[340872224,1729968631810,-603.03497768,0.00015,2]
[340872225,1729968631822,-639.2284197,0.00015,2]
[340872226,1729968631833,-765.29022052,0.00015,2]
[340872227,1729968631844,-140635.79436707,0.00015,2]
[340872228,1729968631855,-5653.0,0.00015,2]
[340872229,1729968631970,-2236.39414876,0.00015,2]
[340872230,1729968631985,-3576.97871244,0.00015,2]
[340872231,1729968631998,-4477.92071747,0.00015,2]
[340872232,1729968632020,-102.82855605,0.00015,2]
[340872233,1729968632032,-4057.61514411,0.00015,2]
[340872235,1729968637479,-670.91304256,0.00015,2]
[340872237,1729968637502,-1000.0,0.00015,2]
[340872253,1729968637665,-544.61761896,0.00015,2]
[340872255,1729968637676,-22013.731444,0.00015,2]
[340872256,1729968637687,-19453.41639563,0.00015,2]
[340872257,1729968637698,-1599.21665465,0.00015,2]
[340872258,1729968637708,-54053.76090814,0.00015,2]
[340872259,1729968637719,-2297.64584134,0.00015,2]
[340872260,1729968637731,-445.42957939,0.00015,2]
[340872261,1729968637887,-5452.46050227,0.00015,2]
[340872262,1729968637898,-539.55965422,0.00015,2]
[340872263,1729968637911,-618.23208736,0.00015,2]
[340872264,1729968637923,-410.82807031,0.00015,2]
[340872273,1729968639461,-1040.26083,0.00015,2]
[340872274,1729968639608,-1822.53339675,0.00015,2]
[340872275,1729968639638,-337340.37331364,0.00015,2]
[340872276,1729968639647,-250.0,0.00015,2]
[340872277,1729968639657,-312501.34435361,0.00015,2]
[340872278,1729968639670,-1908.80365114,0.00015,2]
[340872279,1729968639681,-335.365,0.00015,2]
[340872301,1729968642560,-3131.98815484,0.00015,2]
[340872302,1729968642647,-315.12654839,0.00015,2]
[340872303,1729968642832,-428.8894702,0.00015,2]
[340872304,1729968642844,-1000.00691386,0.00015,2]
[340872305,1729968642855,-1405.7,0.00015,2]
[340872308,1729968645634,-670.87678,0.00015,2]
[340872309,1729968645647,-255.00000002,0.00015,2]
[340872310,1729968645658,-1800.35610422,0.00015,2]
[340872311,1729968645670,-240360.60682372,0.00015,2]
[340872312,1729968645680,-171.07892214,0.00015142,2]
[340872313,1729968645690,-159.59547406,0.00015242,2]
[340872314,1729968645699,-171.85,0.00015342,2]
[340872315,1729968645709,-153.14,0.00015342,2]
[340872316,1729968645718,-159.12,0.00015342,2]
[340872317,1729968645727,-450.0,0.000159,2]
[340872318,1729968645738,-158.06,0.00016712,2]
[340872319,1729968645748,-300.0,0.00017,2]
[340872320,1729968645758,-350.0,0.00019,2]
[340872321,1729968645878,-194.16,0.00019178,2]
[340872322,1729968645889,-323.08926953,0.00020789,2]
[340872323,1729968645899,-400.0,0.00021,2]
[340872324,1729968645908,-450.0,0.00023,2]
[340872325,1729968645918,-500.0,0.00025,2]
[340872326,1729968645928,-323.08926953,0.00026678,2]
[340872327,1729968645938,-550.0,0.00027,2]
[340872328,1729968645948,-444.0,0.00027458,2]
[340872329,1729968645957,-600.0,0.00029,2]
[340872330,1729968645966,-1000.0,0.00029488,2]
[340872331,1729968645976,-444.0,0.00029722,2]
[340872332,1729968645986,-250.0,0.00030232,2]
[340872333,1729968645995,-167.0,0.00030335,2]
[340872334,1729968646005,-23900.0,0.00030476,2]
[340872335,1729968646015,-1000.0,0.00030965,2]
[340872336,1729968646024,-650.0,0.00031,2]
[340872337,1729968646034,-150.0,0.00031624,7]
[340872338,1729968646043,-444.0,0.00031986,2]
[340872339,1729968646052,-323.08926953,0.00032567,15]
[340872340,1729968646062,-150.41,0.00032712,2]
[340872341,1729968646071,-200.81028852,0.00032877,2]
[340872342,1729968646080,-700.0,0.00033,2]
[340872343,1729968646090,-444.0,0.0003425,2]
[340872344,1729968646099,-1000.0,0.00034835,2]
[340872345,1729968646109,-1141.78399786,0.00034849,120]
[340872347,1729968646118,-750.0,0.00035,2]
[340872349,1729968646127,-444.0,0.00036513,2]
[340872350,1729968646136,-209.74676187,0.00036822,2]
[340872351,1729968646145,-800.0,0.00037,2]
[340872352,1729968646154,-323.08926953,0.00038456,15]
[340872353,1729968646163,-171.514,0.00038525,52]
[340872354,1729968646172,-1000.0,0.00038706,2]
[340872355,1729968646181,-444.0,0.00038777,2]
[340872356,1729968646190,-850.0,0.00039,2]
[340872357,1729968646199,-900.0,0.00041,2]
[340872358,1729968646208,-444.0,0.00041041,2]
[340872359,1729968646217,-3468.34856207,0.000411,2]
[340872360,1729968646226,-1000.0,0.00042577,2]
[340872361,1729968646235,-950.0,0.00043,2]
[340872362,1729968646245,-444.0,0.00043305,2]
[340872363,1729968646254,-161.13816557,0.00044137,30]
[340872364,1729968646263,-9081.36229196,0.00044204,2]
[340872365,1729968646271,-2758.66640775,0.00044204,2]
[340872366,1729968646280,-529011.08647767,0.00044204,2]
[340872367,1729968646296,-3397.01544,0.00044204,2]
[340872368,1729968646307,-13251.11562182,0.00044204,2]
[340872369,1729968646318,-55063.73631687,0.00044204,2]
[340872370,1729968646336,-631.49999999,0.00044204,2]
[340872371,1729968646347,-1000.53215,0.00044204,2]
[340872372,1729968646358,-21053.60509189,0.00044204,2]
[340872373,1729968646369,-1665.89,0.00044204,2]
[340872374,1729968646380,-13630.98967939,0.00044204,2]
[340872375,1729968646391,-281.74546058,0.00044204,2]
[340872376,1729968646402,-608.21731146,0.00044204,2]
[340872409,1729969230860,125000.0,0.00044189,120]
[340872411,1729969752141,-250.0,0.00015,2]
[340872412,1729969752162,-157.43,0.00015342,2]
[340872413,1729969752182,-156.55,0.00015342,2]
[340872414,1729969752201,-300.0,0.00017,2]
[340872415,1729969752220,-150.0,0.0001725,5]
[340872416,1729969752241,-350.0,0.00019,2]
[340872417,1729969752261,-400.0,0.00021,2]
[340872418,1729969752280,-329.71,0.00021,2]
[340872419,1729969752299,-1200.0,0.0004,7]
[340872420,1729969752318,-266.4,0.00043514,2]
[340872421,1729969752338,-3369.464422,0.00043959,2]
[340872422,1729969756164,-10083.015578,0.00043959,2]
[340872423,1729969756185,-161.54463481,0.00044089,15]
[340872424,1729969756204,-2566.2864,0.00044089,2]
[340872425,1729969756223,-150.0,0.00044188,4]
[340872426,1729969756244,-171.514,0.00044203,70]
[340872427,1729969756264,-250.0,0.00044253,120]
[340872428,1729969756283,-150.0,0.00044621,7]
[340872429,1729969756303,-214.92811484,0.0004479,17]
[340872430,1729969756322,-44625.19542439,0.000448,120]
[340872431,1729969761099,-40623.68618,0.000448,120]
[340872432,1729969802135,274.0,0.00019725,2]
[340872433,1729969820490,118.0,0.0001725,5]
[340872448,1729969831750,-32.0,0.0001725,5]
[340872449,1729969831760,-268.97593103,0.00044188,120]
[340872450,1729969831770,-28.73406897,0.00044188,120]
[340872451,1729969831789,-134.94739485,0.00044188,120]
[340872452,1729969831799,-466.95470655,0.00044188,31]
[340872453,1729969831809,-5473.0978986,0.00044189,2]
[340872454,1729969831819,-700.0,0.00044189,2]
[340872455,1729969831830,-893.6602403,0.00044189,2]
[340872456,1729969831841,-661.82674922,0.00044189,2]
[340872457,1729969831851,-499.915646,0.00044189,2]
[340872458,1729969831863,-3133.18062,0.00044189,2]
[340872459,1729969831874,-1096.40924013,0.00044189,2]
[340872460,1729969831884,-1460.46853907,0.00044189,2]
[340872461,1729969831895,-105841.33640008,0.00044189,2]
[340872462,1729969831905,-63004.15944687,0.00044189,2]
[340872467,1729969837779,-21999.616,0.00044189,2]
[340872468,1729969837790,-251.07730303,0.00044189,2]
[340872469,1729969837811,-270.88055,0.00044189,2]
[340872470,1729969838033,-9306.42436913,0.00044189,2]
[340872497,1729969839901,-167149.74739298,0.00044189,2]
[340872499,1729969839910,-5086.70738274,0.00044189,2]
[340872501,1729969839919,-2012.95252119,0.00044189,5]
[340872503,1729969839928,-87612.34400149,0.00044189,20]
[340872505,1729969839939,-5547.06123555,0.00044189,20]
[340872507,1729969839950,-308.77401705,0.00044189,20]
[340872515,1729969840019,-2839.5,0.00044189,20]
[340872523,1729969842658,-20150.10000092,0.00044189,20]
[340872524,1729969842669,-16733.5706032,0.00044189,20]
[340872525,1729969842681,-264.85,0.00044189,20]
[340872526,1729969842784,-455.770005,0.00044189,20]
[340872527,1729969842796,-283.2200001,0.00044189,20]
[340872528,1729969842808,-385.93653,0.00044189,20]
[340872529,1729969842818,-1212.12517674,0.00044189,20]
[340872530,1729969842905,-5997.40570346,0.00044189,20]
[340872531,1729969842940,-1323.44216416,0.00044189,20]
[340872633,1729970822046,-1689.41412699,0.00014899,2]
[340872634,1729970822068,-1345.73785208,0.00014999,2]
[340872635,1729970822090,-500.0,0.00014999,2]
[340872636,1729970822112,-500.0,0.00014999,2]
[340872637,1729970822135,-500.0,0.00014999,2]
[340872638,1729970822157,-500.68734814,0.00014999,2]
[340872639,1729970822179,-500.0,0.00014999,2]
[340872640,1729970822203,-157.18290822,0.00014999,2]
[340872641,1729970822225,-500.0,0.00014999,2]
[340872642,1729970822249,-500.0,0.00014999,2]
[340872643,1729970822272,-500.0,0.00014999,2]
[340872644,1729970822295,-500.0,0.00014999,2]
[340872645,1729970822318,-639.24332621,0.00014999,2]
[340872646,1729970822341,-500.0,0.00014999,2]
[340872647,1729970822364,-500.0,0.00014999,2]
[340872648,1729970822387,-500.0,0.00014999,2]
[340872649,1729970822410,-500.0,0.00014999,2]
[340872650,1729970822435,-657996.86065147,0.00015,2]
[340872651,1729970822456,-150.0,0.00015136,2]
[340872652,1729970822478,-155.80457666,0.00015142,2]
[340872653,1729970822501,-158.4,0.00015342,2]
[340872654,1729970822524,-171.85,0.00015342,2]
[340872655,1729970822546,-500.0,0.000172,2]
[340872656,1729970822568,-237.56307341,0.0001725,5]
[340872657,1729970822590,-500.0,0.0001857,2]
[340872658,1729970822612,-724.77,0.000234,2]
[340872659,1729970822634,-664.15,0.000234,2]
[340872660,1729970822655,-209.37,0.000234,2]
[340872661,1729970822677,-186.54,0.000234,5]
[340872662,1729970822699,-5397.67,0.000234,2]
[340872663,1729970822721,-299.99,0.000234,7]
[340872664,1729970822743,-6862.11,0.000234,2]
[340872665,1729970822766,-387.78,0.00023401,2]
[340872666,1729970822788,-1415.06,0.00023401,5]
[340872667,1729970822811,-155.80457663,0.00024785,2]
[340872668,1729970822833,-10735.39697641,0.00025,2]
[340872669,1729970822853,-178.69990307,0.00026,2]
[340872670,1729970822874,-1344.64603658,0.000264,2]
[340872671,1729970822897,-155.80457663,0.00034427,2]
[340872672,1729970822923,-2369.71,0.00035839,2]
[340872673,1729970822947,-150.0,0.00035853,7]
[340872674,1729970822969,-2031.68,0.00038037,2]
[340872675,1729970822993,-2031.68,0.00038047,2]
[340872676,1729970823016,-2031.68,0.00038057,2]
[340872677,1729970823041,-2031.68,0.00038067,2]
[340872678,1729970823067,-2031.68,0.00038077,2]
[340872679,1729970823090,-2031.68,0.00038087,2]
[340872680,1729970823114,-2031.68,0.00038097,2]
[340872681,1729970823138,-2031.68,0.00038107,2]
[340872682,1729970823162,-2031.68,0.00038117,2]
[340872683,1729970823187,-2031.68,0.00038127,2]
[340872684,1729970823210,-2031.68,0.00038137,2]
[340872685,1729970823232,-3760.28,0.00038138,2]
[340872686,1729970823255,-764.02,0.00038145,2]
[340872687,1729970823278,-2031.68,0.00038147,2]
[340872688,1729970823303,-2031.68,0.00038157,2]
[340872689,1729970823327,-2031.68,0.00038167,2]
[340872690,1729970823352,-2031.68,0.00038177,2]
[340872691,1729970823376,-299.9,0.00038182,2]
[340872692,1729970823400,-2031.68,0.00038187,2]
[340872693,1729970823437,-2031.68,0.00038197,2]
[340872694,1729970823465,-2031.68,0.00038207,2]
[340872695,1729970823617,-2031.68,0.00038217,2]
[340872696,1729970823645,-2031.68,0.00038227,2]
[340872697,1729970823669,-12261.24,0.00038254,2]
[340872698,1729970823693,-999.99,0.00039179,2]
[340872699,1729970823717,-200.0,0.00039308,2]
[340872700,1729970823739,-3011.64,0.00039466,2]
[340872701,1729970823762,-3293.48,0.00039663,2]
[340872702,1729970823785,-158.4,0.00039671,2]
[340872703,1729970823808,-155.15,0.00039675,2]
[340872704,1729970823834,-150.0,0.00039744,2]
[340872705,1729970823857,-250.0,0.00039753,2]
[340872706,1729970823880,-3385.02,0.00039802,2]
[340872707,1729970823904,-4097.65,0.00039864,2]
[340872708,1729970823927,-6023.1,0.00039891,2]
[340872709,1729970823950,-250.0,0.00040012,2]
[340872710,1729970823975,-23900.0,0.00040069,2]
[340872711,1729970823999,-199.9,0.00040106,120]
[340872712,1729970824022,-900.0,0.00040185,2]
[340872713,1729970824044,-964.53,0.00040185,2]
[340872714,1729970824068,-250.0,0.00040271,120]
[340872715,1729970824092,-299.9,0.00040446,2]
[340872716,1729970824115,-336.55,0.00040465,2]
[340872717,1729970824138,-181.47,0.00040561,2]
[340872718,1729970824161,-2751.0,0.00040592,120]
[340872719,1729970824184,-471.23,0.0004063,2]
[340872720,1729970824206,-150.39,0.00041096,2]
[340872721,1729970824228,-174.074,0.00041115,60]
[340872722,1729970824251,-1066.045,0.00041115,60]
[340872723,1729970824272,-908.06,0.00041421,2]
[340872724,1729970824294,-606.34,0.00041491,2]
[340872725,1729970824315,-156.88,0.00041905,2]
[340872726,1729970824344,-299.9,0.0004271,2]
[340872727,1729970824367,-159.87,0.00042826,2]
[340872728,1729970824389,-1000.0,0.00042999,2]
[340872729,1729970824412,-500.0,0.00043616,10]
[340872730,1729970824435,-21847.77555849,0.0004407,15]
[340872731,1729970824457,-214.92811484,0.0004407,16]
[340872732,1729970824480,-385.40931448,0.0004407,2]
[340872733,1729970824503,-15629.80114841,0.0004407,2]
[340872734,1729970824528,-155.80457663,0.0004407,28]
[340872735,1729970824551,-1890.5183442,0.0004407,2]
[340872736,1729970824578,-380.1881083,0.0004407,2]
[340872737,1729970824602,-319.9423232,0.0004407,2]
[340872738,1729970824625,-620.52728474,0.0004407,2]
[340872739,1729970824649,-409.50542711,0.00044093,2]
[340872740,1729970824673,-455.104863,0.000441,2]
[340872741,1729970824696,-167.5012,0.00044102,2]
[340872742,1729970824719,-167.45,0.00044131,2]
[340872743,1729970824742,-195.21364554,0.00044169,31]
[340872744,1729970824766,-182.13814736,0.00044169,120]
[340872745,1729970824788,-500.0,0.00044169,120]
[340872746,1729970824810,-176.31543546,0.0004417,30]
[340872747,1729970824832,-498.1384072,0.00044173,7]
[340872748,1729970824854,-375.0,0.00044189,2]
[340872749,1729970824876,-192.68175842,0.00044192,2]
[340872750,1729970824898,-822.57,0.000442,30]
[340872751,1729970824925,-859.3,0.000442,60]
[340872752,1729970824948,-183.81271272,0.00044202,30]
[340872753,1729970824970,-202.59274124,0.00044773,10]
[340872754,1729970824993,-114987.12537337,0.000448,120]
[340872755,1729970825016,-205.86521344,0.0004489,120]
[340872756,1729970825038,-159.87,0.00044967,2]
[340872757,1729970825061,-299.9,0.00044974,2]
[340872758,1729970825086,-500.0,0.00044986,10]
[340872759,1729970825113,-619.64003295,0.00045,120]
[340872760,1729970825158,150.0,0.00014998,2]
[340872761,1729970825202,150.0,0.00016123,2]
[340872762,1729970838250,-319.47138642,0.000465,120]
[340872763,1729970838276,-159.11018283,0.00047,60]
[340872764,1729970838303,-203.48510959,0.00047,120]
[340872765,1729970853804,250.0,0.00015,2]
[340872766,1729970854105,-214.92811484,0.00047099,19]
[340872767,1729970854126,-2311.42717234,0.00047099,2]
[340872768,1729970854915,300.0,0.00017,2]
[340872769,1729970856064,350.0,0.00019,2]
[340872770,1729970857240,400.0,0.00021,2]
[340872771,1729970862398,202.7935973,0.0004407,19]
[340872772,1729970868825,6530.55382216,0.00021,4]
[340872773,1729970871604,740.31,0.000442,30]
[340872774,1729970881679,300.0,0.00019725,2]
[340872775,1729970882860,1884936.12726061,0.00015,2]
[340872777,1729970931292,-420.0,0.0001439,2]
[340872778,1729970931315,-807285.57046892,0.00015,2]
[340872779,1729970931336,-2416.414,0.00023922,2]
[340872780,1729970931356,-345.20479722,0.00026,2]
[340872781,1729970931377,-634.03590513,0.000379,2]
[340872782,1729970941518,150.0,0.00019725,2]
[340872783,1729970941540,150.0,0.00019725,2]
[340872784,1729970942385,150.0,0.00021484,2]
[340872785,1729970942410,150.0,0.00021484,2]
[340872786,1729970942432,120.0,0.00021484,2]
[340872787,1729970943078,91.54311767,0.00023401,2]
[340872788,1729970943100,150.0,0.00023401,2]
[340872789,1729970946092,-331.45688233,0.00023401,2]